Cogmind - Beta 16 @@@ ROGUE MODE // 2026.02.01 @ 19:26:22 Player: quak Result: Self-destructed Performance ------------- Evolutions (2) 1000 Regions Visited (3) 600 Robots Destroyed (17) 85 Value Destroyed (361) 361 Prototype IDs (0) 0 Alien Tech Used (0) 0 Bonus (0) 0 TOTAL SCORE: 2046 Bonus ------- None Cogmind --------- Core Integrity 550/550 Matter 291/300 Energy 250/250 System Corruption 0% Temperature Cool (0) Movement Treading (160) Location -8/Materials Parts ------- > --- POWER (1) -------- Ion Engine > --- PROPULSION (5) --- Improved Treads Improved Treads > --- UTILITY (2) ------ Medium Storage Unit > --- WEAPON (3) ------- Small Laser > --- INVENTORY (10) --- Light Nuclear Core Improved Treads Improved Treads Huge Storage Unit Seismic Detector Tractor Beam Peak State ------------ > --- POWER ------------ Ion Engine > --- PROPULSION ------- Improved Treads Improved Treads > --- UTILITY ---------- Medium Storage Unit > --- WEAPON ----------- Small Laser Light Assault Rifle > --- INVENTORY -------- Light Nuclear Core Improved Treads Improved Treads Huge Storage Unit Seismic Detector Tractor Beam [Rating: 9] Favorites ----------- Power Ion Engine Engine Ion Engine Propulsion Light Treads Treads Light Treads Utility Seismic Detector Device Seismic Detector Storage Small Storage Unit Weapon Medium Laser Energy Gun Medium Laser Ballistic Gun Light Assault Rifle Build | -11 -10 -10 -8 ------- Run | Yrd Mat Sub Mat Slots Evolved 4 | . . . 4 Power . | . . . . Propulsion 3 | . . . 3 Utility . | . . . . Weapon 1 | . . . 1 Parts Attached 14 | 8 3 3 . Power 1 | 1 . . . Engine 1 | 1 . . . Core . | . . . . Reactor . | . . . . Propulsion 4 | 2 . 2 . Treads 4 | 2 . 2 . Leg . | . . . . Wheel . | . . . . Hover . | . . . . Flight . | . . . . Utility 4 | 3 1 . . Device 2 | 2 . . . Storage 2 | 1 1 . . Processor . | . . . . Hackware . | . . . . Protection . | . . . . Artifact . | . . . . Weapon 5 | 2 2 1 . Energy Gun 2 | 1 . 1 . Energy Cannon . | . . . . Ballistic Gun 3 | 1 2 . . Ballistic Cannon . | . . . . Launcher . | . . . . Special Weapon . | . . . . Impact Weapon . | . . . . Slashing Weapon . | . . . . Piercing Weapon . | . . . . Special Melee Weapon . | . . . . Unidentified Prototypes . | . . . . Parts Lost 6 | . . 6 . Power . | . . . . Propulsion 2 | . . 2 . Utility 1 | . . 1 . Weapon 3 | . . 3 . Highest Loss Streak 6 | . . 6 . To Critical Strikes . | . . . . Average Backups 7 | 4 8 8 . Power . | . . 1 . Propulsion 3 | 1 3 3 . Utility 2 | . 2 3 . Weapon 1 | 1 1 1 . Tool/Special . | . . . . Unused Backups 10 | . 5 . 5 Power 3 | . 2 . 1 Propulsion 4 | . 2 . 2 Utility 2 | . . . 2 Weapon 1 | . 1 . . Tool/Special . | . . . . Average Slot Usage (%) 96 | . 98 89 . Engine 14 | . 14 14 . Treads 28 | . 28 28 . Device 11 | . 12 7 . Storage 14 | . 14 14 . Energy Gun 13 | . 14 13 . Ballistic Gun 13 | . 14 11 . Peak Build Rating 9 | 7 8 9 . Average Rating 7 | 5 7 7 . On Entrance 5 | . 7 8 8 Avg Prop Armor Cover (%) . | . . . . Naked Turns . | . . . . Heaviest Build 20 | 14 20 20 . Greatest Support 46 | 40 40 46 . Greatest Overweight (x) . | . . . . Average Overweight (x) . | . . . . Largest Inventory Capacity 10 | 8 10 10 . Average Capacity 8 | 7 8 10 . Most Carried 10 | 6 10 10 . Average Carried 7 | 4 8 8 . Final Capacity 10 | 8 10 10 10 Final Carried 10 | 6 10 6 6 Class Distribution -------------------- 100% | Mutant Dominant Class ---------------- Mutant | -10/Materials Mutant | -10/Subcaves Mutant | -8/Materials Resources | -11 -10 -10 -8 ----------- Run | Yrd Mat Sub Mat Matter Collected 405 | 287 40 78 . Remotely . | . . . . Salvage Created 618 | 211 329 78 . Parts 36 | 11 23 2 . Haulers Intercepted 1 | . 1 . . Recyclers Shooed . | . . . . Parts Field Recycled . | . . . . Retrieved Matter . | . . . . Parts Self-Destructed 1 | . . 1 . Prevented . | . . . . Parts Restored . | . . . . Kills | -11 -10 -10 -8 ------- Run | Yrd Mat Sub Mat Combat Hostiles Destroyed 8 | . 6 2 . Guns 8 | . 6 2 . Classes Destroyed 6 | 3 2 1 . Worker 1 | 1 . . . Tunneler 6 | 5 1 . . Hauler 1 | . 1 . . Recycler 1 | 1 . . . Grunt 6 | . 6 . . Subdweller 2 | . . 2 . Best Kill Streak 4 | 4 3 1 . Combat Bots Only 2 | . 2 1 . Max Kills in Single Turn 1 | 1 1 1 . Gunslinging . | . . . . Exploded . | . . . . Melee . | . . . . Uniques/NPCs Destroyed . | . . . . Combat | -11 -10 -10 -8 -------- Run | Yrd Mat Sub Mat Hostile Shots Fired 66 | . 13 53 . Missed 14 | . 2 12 . Hits 52 | . 11 41 . Projectile 52 | . 11 41 . Critical Strikes 3 | . . 3 . Damage Taken 1150 | . 142 1008 . Core 240 | . 33 207 . Absorbed by Shields . | . . . . Regen/Repaired (Parts) 6 | . 6 . . Core Remaining (%) 52 | 100 . 4 . Volleys Fired 68 | 17 21 30 . Largest 2 | 2 2 2 . Hottest 70 | 70 70 70 . Shots Fired 123 | 34 42 47 . Gun 123 | 34 42 47 . Cannon . | . . . . Launcher . | . . . . Special . | . . . . Kinetic 60 | 17 21 22 . Thermal 63 | 17 21 25 . Explosive . | . . . . Electromagnetic . | . . . . Robot Hit Streak 31 | 8 10 31 . Robot Miss Streak 4 | 2 2 4 . Penetration Max . | . . . . Secondary Targets 1 | . . 1 . Max Gunslinging Chain 1 | . . 1 . Shots Hit Robots 97 | 24 32 41 . Core Hits 33 | 11 18 4 . Critical Kills . | . . . . Critical Parts Destroyed . | . . . . Critical Strikes 4 | 2 1 1 . Burn 4 | 2 1 1 . Melee Attacks . | . . . . Impact . | . . . . Slashing . | . . . . Piercing . | . . . . Sneak Attacks . | . . . . Combat Hostiles . | . . . . Follow-up Attacks . | . . . . Damage Inflicted 1065 | 272 344 449 . Guns 1065 | 272 344 449 . Cannons . | . . . . Explosions . | . . . . Melee . | . . . . Ramming . | . . . . Kinetic 462 | 110 129 223 . Thermal 603 | 162 215 226 . Explosive . | . . . . Electromagnetic . | . . . . Impact . | . . . . Slashing . | . . . . Piercing . | . . . . Highest Corruption . | . . . . Average Corruption . | . . . . Corruption Purged . | . . . . Corruption Blocked . | . . . . Overload Shots . | . . . . Overflow Damage . | . . . . Projectiles . | . . . . Explosions . | . . . . Melee . | . . . . Knockbacks . | . . . . Impact . | . . . . Kinetic . | . . . . Secondary . | . . . . Self-Inflicted Damage . | . . . . Shots . | . . . . Rammed . | . . . . Targets Rammed . | . . . . Kicked . | . . . . Crushed . | . . . . Highest Temperature 248 | 90 114 248 . Average Temperature 49 | 34 40 141 . Received Heat Transfer 655 | . 81 574 . Siege Activations . | . . . . Martial Activations . | . . . . Shielding Activations . | . . . . Robots Disrupted . | . . . . Combat Hostiles . | . . . . Robots Corrupted . | . . . . Combat Hostiles . | . . . . Parts Fried . | . . . . Impact Corruptions . | . . . . Robots Melted . | . . . . Combat Hostiles . | . . . . Parts Melted 4 | 1 1 2 . Heat Transferred 1966 | 629 703 634 . Parts Sabotaged . | . . . . Parts Stolen . | . . . . Parts Stripped . | . . . . Power Chain Reactions . | . . . . Alert | -11 -10 -10 -8 ------- Run | Yrd Mat Sub Mat Maximum Alert Level . | . . . . Low Security (%) 100 | 100 100 . . Level 1 . | . . . . Level 2 . | . . . . Level 3 . | . . . . Level 4 . | . . . . Level 5 . | . . . . High Security . | . . . . Max Security . | . . . . Peak Influence 127 | 10 127 . . Initial . | . . . . Average 31 | 1 40 . . Influence Increases 230 | 35 195 . . Destroy 0b10 Robot/C 120 | . 120 . . Destroy 0b10 Robot/NC 45 | 35 10 . . Destroy Leader 32 | . 32 . . Successful Hack 3 | . 3 . . Lose Combat Pursuer 30 | . 30 . . Influence Decreases 230 | 35 195 . . Time Decay 230 | 35 195 . . Squads Dispatched 2 | . 2 . . Investigation 1 | . 1 . . Extermination . | . . . . Reinforcement 1 | . 1 . . Assault . | . . . . Garrison . | . . . . Intercept . | . . . . Searches Triggered . | . . . . Construction Impeded . | . . . . Haulers Reinforced . | . . . . Active Scanning Responses . | . . . . Cargo Convoy Interrupts . | . . . . Stealth | -11 -10 -10 -8 --------- Run | Yrd Mat Sub Mat Distress Signals 1 | . 1 . . Communications Jammed . | . . . . Distress Signals . | . . . . Times Spotted 12 | . 10 2 . Peak Tracking Total 4 | . 4 2 . Tactical Retreats 2 | . 2 . . Traps | -11 -10 -10 -8 ------- Run | Yrd Mat Sub Mat Traps Triggered . | . . . . Indirectly . | . . . . Trap Hack Attempts . | . . . . Triggered . | . . . . Disarmed . | . . . . Reprogrammed . | . . . . Reused . | . . . . Traps Extracted . | . . . . Installed . | . . . . Triggered . | . . . . Machines | -11 -10 -10 -8 ---------- Run | Yrd Mat Sub Mat Machines Disabled . | . . . . Max in Single Turn . | . . . . Machines Repaired . | . . . . Machines Dismantled . | . . . . Machines Sabotaged . | . . . . Overloaded Fab Kills . | . . . . Hacking | -11 -10 -10 -8 --------- Run | Yrd Mat Sub Mat Machines Accessed 5 | . 5 . . Terminals 3 | . 3 . . Fabricators . | . . . . Repair Stations 1 | . 1 . . Recycling Units 1 | . 1 . . Scanalyzers . | . . . . Garrison Access . | . . . . Total Hacks 12 | . 12 . . Successful 2 | . 2 . . Failed 10 | . 10 . . Catastrophic 2 | . 2 . . Database Lockouts . | . . . . Manual 8 | . 8 . . Terminals 9 | . 9 . . Fabricators . | . . . . Repair Stations 2 | . 2 . . Recycling Units 1 | . 1 . . Scanalyzers . | . . . . Garrison Access . | . . . . Terminal Hacks . | . . . . Fabricator Hacks . | . . . . Repair Station Hacks 2 | . 2 . . Scan Component 1 | . 1 . . Repair 1 | . 1 . . Recycling Unit Hacks . | . . . . Scanalyzer . | . . . . Garrison Access Hacks . | . . . . Unauthorized Hacks . | . . . . Terminals . | . . . . Fabricators . | . . . . Repair Stations . | . . . . Recycling Units . | . . . . Scanalyzers . | . . . . Garrison Access . | . . . . Data Cores Recovered . | . . . . Used . | . . . . Hacking Detections 5 | . 5 . . Full Trace Events 2 | . 2 . . Feedback Events . | . . . . Feedback Blocked . | . . . . Robot Schematics Acquired . | . . . . Robots Built . | . . . . Authchips . | . . . . Time . | . . . . Total Robot Build Rating . | . . . . Part Schematics Acquired . | . . . . Parts Built . | . . . . Authchips . | . . . . Time . | . . . . Total Part Build Rating . | . . . . Part Studies Acquired . | . . . . Parts Repaired 1 | . 1 . . Time 26 | . 26 . . Parts Recycled . | . . . . Recycled Matter . | . . . . Retrieved Matter . | . . . . Retrieved Components . | . . . . Parts Scanalyzed . | . . . . Part Schematics Acquired . | . . . . Parts Damaged . | . . . . Bothacking | -11 -10 -10 -8 ------------ Run | Yrd Mat Sub Mat Used RIF Installer . | . . . . Robots Hacked . | . . . . Non-combat . | . . . . Combat . | . . . . Robot Hacks Applied . | . . . . Relay Couplers Released . | . . . . Fabnet Peak Effective % . | . . . . Robots Rewired . | . . . . Allies Hacked . | . . . . Hacks Repelled . | . . . . Allies | -11 -10 -10 -8 -------- Run | Yrd Mat Sub Mat Total Allies . | . . . . Largest Group . | . . . . Highest-Rated Group . | . . . . Highest-Rated Ally . | . . . . Total Orders . | . . . . Ally Attacks . | . . . . Total Damage . | . . . . Kills . | . . . . Allies Corrupted . | . . . . Allies Melted . | . . . . Intel | -11 -10 -10 -8 ------- Run | Yrd Mat Sub Mat Active Infowar (turns) 689 | 89 513 87 . Seismic 689 | 89 513 87 . Robot Analysis Total . | . . . . Derelict Logs Recovered . | . . . . Drone Launches . | . . . . Drone Recoveries . | . . . . Exploration | -11 -10 -10 -8 ------------- Run | Yrd Mat Sub Mat Turns Passed 928 | 171 574 183 . Spaces Moved 399 | 74 260 65 . Core 13 | 13 . . . Treads 386 | 61 260 65 . Legs . | . . . . Wheels . | . . . . Hover . | . . . . Flight . | . . . . Fastest Speed 50 | 50 160 160 . Average Speed 156 | 140 160 160 . Slowest Speed 160 | 160 160 160 . Overloaded Moves . | . . . . Propulsion Burnouts . | . . . . Robots Hopped . | . . . . Potential Cave-ins . | . . . . Cave-ins Triggered . | . . . . Exploration Rate (%) 14 | 5 42 9 1 Regions Visited 3 Branch Regions 1 Pre-discovered Areas . | . . . . Known Exits Taken . | . . . . Unknown Exits Taken 3 | 1 1 1 . Scrap Searched . | . . . . Spaces Dug . | . . . . Terrain Destroyed . | . . . . Melee . | . . . . Projectile . | . . . . AOE . | . . . . Terrain Rammed . | . . . . Walls Destroyed . | . . . . Machines Disabled . | . . . . Actions | -11 -10 -10 -8 --------- Run | Yrd Mat Sub Mat Total 592 | 108 385 99 . Wait 85 | . 84 1 . Move 396 | 73 259 64 . Hop . | . . . . Pick Up 19 | 10 9 . . Fast Attach 4 | 3 1 . . Attach 8 | 4 . 4 . Detach . | . . . . Swap 4 | 1 3 . . Drop 8 | . 8 . . Fire 68 | 17 21 30 . Melee . | . . . . Ram . | . . . . Kick . | . . . . Crush . | . . . . Escape Stasis . | . . . . Rewire . | . . . . Trap . | . . . . Miscellaneous . | . . . . Route ------- -11/Scrapyard -10/Materials (discovered 2 exits: [*Mat] / [*Sub]) -10/Subcaves -8/Materials History --------- Turn | Location | Event 4 | -11/Scrapyard | Discovered new exit (range 15) 172 | -11/Scrapyard | Entered Materials 289 | -10/Materials | Repaired Seismic Detector? 303 | -10/Materials | Build established: Mutant 342 | -10/Materials | Discovered new exit (range 10) 677 | -10/Materials | Discovered new exit (range 7) 746 | -10/Materials | Entered Subcaves 861 | -10/Subcaves | Core integrity fell below 50% 885 | -10/Subcaves | Core integrity fell below 20% 917 | -10/Subcaves | Lost 6 parts (2n1u3w) 919 | -10/Subcaves | Discovered new exit (range 5) 929 | -10/Subcaves | Entered Materials 929 | -8/Materials | Evolved 4 slots: Propulsion x3, Weapon x1 929 | -8/Materials | Self-destructed Last Messages --------------- 00867_ Switching to secondary target: BL-A6S(R). 00868_ Assault Rifle destroyed. 00870_ Subatomizers dissect the Sub. Monowheel. 00876_ Lgt. Treads destroyed. 00880_ Subatomizers dissect the Sub. Monowheel. 00886_ Lgt. Assault Rifle destroyed. 00889_ BL-A6S(R) affixes Scrap Shield Fragment to Scrap Shield. 00894_ Subatomizers dissect the Disposable Heat Sink. 00909_ BL-A6S(R) heat damages Sub. Power Source. 00912_ BL-A6S(R) heat damages Sub. Monowheel. 00912_ Sub. Beam Cannon melted. 00912_ BL-A6S(R) destroyed. 00917_ Acquired 43 matter. 00919_ Acquired 35 matter. 00919_ EXIT=FOUND PARAMETERS=PROPULSION+3,WEAPON+1 LOCATION=UNKNOWN GOAL=ESCAPE Map ----- +----------------------------------------------------+ | ???????????????????????????????????????? | | ???????????????????????????????????????? | | ???????????????????????????????????????? | | ???????????????????????????????????????? | | ???????????????????????????????????????? | | ???????????????????????????????????????? | | ???????????????????????????????????????? | | ???????????????????????????????????????? | | ???????????????????????????????????????? | | ???????????????????????????????????????? | | ???????????????????????? ????????????? | | ???????????????????????? ????????????? | | ???????????????????????? ????????????? | | ???????????????????????# #???????????? | | ???????????????????????# #???????????? | | ???????????????????????# #???????????? | | ???????????????????????# #???????????? | | ???????????????????????# #???????????? | | ???????????????????????+ #???????????? | | ???????????????????????# +???????????? | | ???????????????????????# #???????????? | | ???????????????????????# #???????????? | | ???????????????????????# #???????????? | | ???????????????????????# #???????????? | | ???????????????????????# #???????????? | | ???????????????????????# @ #???????????? | | ???????????????????? #???????????? | | ???????????????????#########???????????? | | ???????????????????????????????????????? | | ???????????????????????????????????????? | | ???????????????????????????????????????? | | ???????????????????????????????????????? | | | | | | | | | | | | | | | | | | | | | | | | | | | | | | | | | | | | | +----------------------------------------------------+ Best States ------------- Heat Dissipation 25 Energy Generation 10 Energy Capacity 250 Matter Stores 300 Matter Capacity 300 Sight Range 16 Terrain Scan Density 10 Evasion (%) 40 Recoil Reduction 2 Item Schematics ----------------- None Robot Schematics ------------------ None Fabricated ------------ Nothing Repaired ---------- Seismic Detector | 70% | -10/Materials Studied --------- None Alien Tech Used ----------------- None Achievements -------------- None Challenges ------------ None Game ------ Seed WarlordAmuletDriveblaster Manual? 0 Play Time 00:07:48 Cumulative 32.9 hours Start 2026.02.01 @ 19:18:39 End 2026.02.01 @ 19:26:22 Sessions 1 Manual Loads 0 Difficulty Rogue Special Mode None Game No. 62 Rogue 62 Adventurer 0 Explorer 0 Win Type - Total 3 Types 3/0/0/0/0/0/0/0/0/0 Lore% 28 Gallery% 24 Achievement% 23 Wizard Run 0 Options --------- Layout 1 ASCII 0 Keyboard 1 Movement Vi Keybinds 0 Fullscreen 1 Font 32/SmallcapsGlow Map View 50x40 Zoom Use 0% Tactical HUD 1 Map Filters NONE Filters NONE Steam 1 RUN: b7b27a53-5381-4878-8432-83c20a2042f0